bitfinex/quotes_BTCUSD_20230108
["timestamp","ask_amount","ask_price","bid_price","bid_amount"]
[1673209005309,4.82401632,16957.0,16956.0,0.06346313]
[1673209006199,4.45565732,16957.0,16956.0,0.06346313]
[1673209006431,3.86162951,16957.0,16956.0,0.06346313]
[1673209006662,3.35123813,16957.0,16956.0,0.06346313]
[1673209007097,2.75123813,16957.0,16956.0,0.06346313]
[1673209007368,3.19310221,16957.0,16956.0,0.06346313]
[1673209007887,2.82474321,16957.0,16956.0,0.06335596]
[1673209008158,3.19310221,16957.0,16956.0,0.06335596]
[1673209008644,2.58850489,16957.0,16956.0,0.06335596]
[1673209008931,2.60337621,16957.0,16956.0,0.06335596]
[1673209009192,2.58850365,16957.0,16956.0,0.06335596]
[1673209010962,1.22334469,16957.0,16956.0,0.06335596]
[1673209011219,1.22334469,16957.0,16956.0,0.5094901]
[1673209011484,1.04660856,16957.0,16956.0,0.5094901]
[1673209011727,1.04660856,16957.0,16956.0,0.99438542]
[1673209011985,0.19175031,16957.0,16956.0,1.2246491]
[1673209012274,0.45688256,16957.0,16956.0,1.2246491]
[1673209012524,0.45688256,16957.0,16956.0,0.8562901]
[1673209013021,0.45688256,16957.0,16956.0,1.2246491]
[1673209013797,0.45688256,16957.0,16956.0,0.41015596]
[1673209014044,0.45688256,16957.0,16956.0,0.06335596]
[1673209014298,0.81035052,16957.0,16956.0,0.06335596]
[1673209014810,1.36375124,16957.0,16956.0,0.06335596]
[1673209015068,1.3786238,16957.0,16956.0,0.06335596]
[1673209015818,1.0102648,16957.0,16956.0,0.06335596]
[1673209016334,1.36383447,16957.0,16956.0,0.06335596]
[1673209018363,1.3786238,16957.0,16956.0,0.06335596]
[1673209018613,1.5999908,16957.0,16956.0,0.06335596]
[1673209018843,1.9683498,16957.0,16956.0,0.06335596]
[1673209019864,2.11621172,16957.0,16956.0,0.06335596]
[1673209020149,2.6266031,16957.0,16956.0,0.06335596]
[1673209020396,2.11621172,16957.0,16956.0,0.06335596]
[1673209021291,2.55828307,16957.0,16956.0,0.06335596]
[1673209022412,2.11621172,16957.0,16956.0,0.06335596]
[1673209023211,1.74785272,16957.0,16956.0,0.06335596]
[1673209023441,2.11621172,16957.0,16956.0,0.06335596]
[1673209023666,1.74785272,16957.0,16956.0,0.06335596]
[1673209023890,2.11621172,16957.0,16956.0,0.06335596]
[1673209024394,1.74785272,16957.0,16956.0,0.06335596]
[1673209024640,2.11621172,16957.0,16956.0,0.06335596]
[1673209025369,2.18995593,16957.0,16956.0,0.06335596]
[1673209026134,3.61580078,16957.0,16956.0,0.06335596]
[1673209026403,2.71443772,16957.0,16956.0,0.06335596]
[1673209026744,3.24447558,16957.0,16956.0,0.06335596]
[1673209027037,3.20146624,16957.0,16956.0,0.06335596]
[1673209027207,2.67142838,16957.0,16956.0,0.06335596]
[1673209027578,3.13447253,16957.0,16956.0,0.06335596]
[1673209027686,3.11947253,16957.0,16956.0,0.06146313]
[1673209027939,3.85036263,16957.0,16956.0,0.06146313]
[1673209028182,4.39406671,16957.0,16956.0,0.06146313]
[1673209028432,3.25347253,16957.0,16956.0,0.06146313]
[1673209028673,3.90979024,16957.0,16956.0,0.06146313]
[1673209029172,3.94520693,16957.0,16956.0,0.06146313]
[1673209029422,3.78507481,16957.0,16956.0,0.06146313]
[1673209030162,2.81163928,16957.0,16956.0,0.06146313]
[1673209032195,2.31545369,16957.0,16956.0,0.06146313]
[1673209032458,2.31545369,16957.0,16956.0,0.06139558]
[1673209032712,2.80094069,16957.0,16956.0,0.06139558]
[1673209033969,2.31545369,16957.0,16956.0,0.06139558]
[1673209034198,2.88136693,16957.0,16956.0,0.06139558]
[1673209034729,3.41173329,16957.0,16956.0,0.06139558]
[1673209035293,3.36291971,16957.0,16956.0,0.06139558]
[1673209035543,3.86769705,16957.0,16956.0,0.06139558]
[1673209036534,3.36291971,16957.0,16956.0,0.06139558]
[1673209036543,3.9630034,16957.0,16956.0,0.06139558]
[1673209036796,3.45261202,16957.0,16956.0,0.06139558]
[1673209038071,4.30630981,16957.0,16956.0,0.06139558]
[1673209038352,4.60630981,16957.0,16956.0,0.06139558]
[1673209042306,5.10382238,16957.0,16956.0,0.06139558]
[1673209042555,3.66985764,16957.0,16956.0,0.06139558]
[1673209043059,3.49735764,16957.0,16956.0,0.06139558]
[1673209043299,3.46194095,16957.0,16956.0,0.06139558]
[1673209044315,3.46185571,16957.0,16956.0,0.06139558]
[1673209044820,3.48136979,16957.0,16956.0,0.06139558]
[1673209046926,3.99176117,16957.0,16956.0,0.06139558]
[1673209048479,3.48136979,16957.0,16956.0,0.06139558]
[1673209048955,3.99176117,16957.0,16956.0,0.06139558]
[1673209049382,3.48136979,16957.0,16956.0,0.06139558]
[1673209050020,3.99176117,16957.0,16956.0,0.06139558]
[1673209050242,3.48136979,16957.0,16956.0,0.06139558]
[1673209050511,3.99176117,16957.0,16956.0,0.06139558]
[1673209051269,3.4942486,16957.0,16956.0,0.06139558]
[1673209051538,4.06290751,16957.0,16956.0,0.06139558]
[1673209051797,2.99975983,16957.0,16956.0,0.06139558]
[1673209052053,4.09965074,16957.0,16956.0,0.06139558]
[1673209052306,3.56969615,16957.0,16956.0,0.06139558]
[1673209052563,4.16357328,16957.0,16956.0,0.06139558]
[1673209052785,4.49052706,16957.0,16956.0,0.06139558]
[1673209055156,3.89664993,16957.0,16956.0,0.06139558]
[1673209055416,4.09030815,16957.0,16956.0,0.06139558]
[1673209055683,3.49341805,16957.0,16956.0,0.06139558]
[1673209055926,3.29975983,16957.0,16956.0,0.06139558]
[1673209056162,3.59664993,16957.0,16956.0,0.06139558]
[1673209056424,4.80131488,16957.0,16956.0,0.06139558]
[1673209056677,4.43631722,16957.0,16956.0,0.06139558]
[1673209056929,4.13631722,16957.0,16956.0,0.06139558]
[1673209057187,4.43631722,16957.0,16956.0,0.06139558]
[1673209057436,5.11017525,16957.0,16956.0,0.06139558]
[1673209058193,4.43631722,16957.0,16956.0,0.06139558]
[1673209059207,4.82488098,16957.0,16956.0,0.06139558]
[1673209059720,3.89395822,16957.0,16956.0,0.06139558]
[1673209059976,4.26231722,16957.0,16956.0,0.06139558]
[1673209060478,3.75192584,16957.0,16956.0,0.06139558]
[1673209060983,4.00767284,16957.0,16956.0,0.06139558]
[1673209061237,4.37603184,16957.0,16956.0,0.06139558]
[1673209061487,3.38356684,16957.0,16956.0,0.06139558]
[1673209061748,3.75192584,16957.0,16956.0,0.06139558]
[1673209061992,3.38356684,16957.0,16956.0,0.06139558]
[1673209062494,3.75192584,16957.0,16956.0,0.06139558]
[1673209062939,4.43674767,16957.0,16956.0,0.06139558]
[1673209063969,3.75192584,16957.0,16956.0,0.06139558]
[1673209064228,3.38356684,16957.0,16956.0,0.06139558]
[1673209064502,4.31661221,16957.0,16956.0,0.06139558]
[1673209065285,4.01661221,16957.0,16956.0,0.06139558]
[1673209065581,4.31661221,16957.0,16956.0,0.06139558]
[1673209066123,3.10858592,16957.0,16956.0,0.06139558]
[1673209067924,3.10858592,16957.0,16956.0,0.06128958]
[1673209068189,2.51169582,16957.0,16956.0,0.06128958]
[1673209069782,3.04243538,16957.0,16956.0,0.23528958]
[1673209070328,2.45270938,16957.0,16956.0,0.23528958]
[1673209070588,2.45270938,16957.0,16956.0,0.74568096]
[1673209071390,1.31336676,16957.0,16956.0,0.62872862]
[1673209071644,0.72364076,16957.0,16956.0,1.31232]
[1673209071910,0.72364076,16957.0,16956.0,0.80192862]
[1673209072517,1.16566105,16957.0,16956.0,0.80192862]
[1673209074639,1.51916346,16957.0,16956.0,0.80192862]
[1673209078449,1.78417562,16957.0,16956.0,0.80192862]
[1673209078768,1.51916346,16957.0,16956.0,0.80192862]
[1673209082268,1.7841868,16957.0,16956.0,0.80192862]
[1673209082529,1.34216651,16957.0,16956.0,0.80192862]
[1673209082787,1.7841868,16957.0,16956.0,0.80192862]
[1673209083053,1.34216651,16957.0,16956.0,0.80192862]
[1673209084063,1.7841868,16957.0,16956.0,0.62792862]
[1673209084316,1.34216651,16957.0,16956.0,0.62792862]
[1673209087487,1.51878163,16957.0,16956.0,0.62792862]
[1673209087902,1.34216651,16957.0,16956.0,0.62792862]
[1673209089643,1.51876469,16957.0,16956.0,0.62792862]
[1673209089883,1.34216651,16957.0,16956.0,0.62792862]
[1673209090391,1.1652625,16957.0,16956.0,0.62792862]
[1673209091608,1.1652625,16957.0,16956.0,0.62781148]
[1673209092393,1.78383894,16957.0,16956.0,0.23437244]
[1673209092607,1.96074295,16957.0,16956.0,0.23437244]
[1673209093916,2.55046895,16957.0,16956.0,0.40757244]
[1673209094464,2.7274659,16957.0,16956.0,0.40757244]
[1673209095282,2.82296689,16957.0,16956.0,0.40757244]
[1673209095834,2.7274659,16957.0,16956.0,0.40757244]
[1673209098372,2.37396349,16957.0,16956.0,0.40757244]
[1673209099705,2.72730534,16957.0,16956.0,0.40757244]
[1673209100354,2.37396349,16957.0,16956.0,0.40757244]
[1673209104552,1.75550698,16957.0,16956.0,0.40757244]
[1673209107005,1.31336676,16957.0,16956.0,0.40757244]
[1673209107264,1.75569108,16957.0,16956.0,0.40757244]
[1673209108430,1.31336676,16957.0,16956.0,0.40757244]
[1673209109174,1.75583198,16957.0,16956.0,0.40757244]
[1673209109964,1.31336676,16957.0,16956.0,0.40757244]
[1673209114009,1.31336676,16957.0,16956.0,0.23437244]
[1673209115016,1.75585422,16957.0,16956.0,0.2342976]
[1673209115260,1.31336676,16957.0,16956.0,0.2342976]
[1673209116629,1.75584829,16957.0,16956.0,0.2342976]
[1673209116881,1.75584812,16957.0,16956.0,0.2342976]
[1673209117140,1.31336676,16957.0,16956.0,0.2342976]
[1673209117486,1.75584877,16957.0,16956.0,0.2342976]
[1673209117740,1.16612277,16957.0,16956.0,0.72362296]
[1673209118262,0.57648201,16957.0,16956.0,0.72362296]
[1673209124350,1.16620801,16957.0,16956.0,0.72362296]
[1673209129336,1.52011693,16957.0,16956.0,0.72362296]
[1673209129626,1.16620801,16957.0,16956.0,0.72362296]
[1673209130041,1.52011894,16957.0,16956.0,0.72362296]
[1673209130285,1.16620801,16957.0,16956.0,0.72362296]
[1673209130509,1.52011447,16957.0,16956.0,0.72362296]
[1673209130790,1.16620801,16957.0,16956.0,0.72362296]
[1673209131044,0.93038218,16957.0,16956.0,0.72362296]
[1673209132836,1.29874118,16957.0,16956.0,0.72362296]
[1673209133075,0.93038218,16957.0,16956.0,0.72362296]
[1673209133794,0.93038218,16957.0,16956.0,0.89722296]
[1673209134336,0.93038218,16957.0,16956.0,1.40761434]
[1673209134595,0.93022023,16957.0,16956.0,2.53853434]
[1673209134853,0.57632006,16957.0,16956.0,2.02814296]
[1673209135110,0.57632006,16957.0,16956.0,2.53853434]
[1673209135373,0.57632006,16957.0,16956.0,3.23853434]
[1673209135887,0.57632006,16957.0,16956.0,3.82829534]
[1673209135888,0.31092576,16957.0,16956.0,3.82829534]
[1673209136161,0.57632006,16957.0,16956.0,3.23853434]
[1673209138238,0.57632006,16957.0,16956.0,2.64877334]
[1673209138464,0.57632006,16957.0,16956.0,1.43838196]
[1673209138711,0.31092576,16957.0,16956.0,1.94877334]
[1673209139475,0.57632006,16957.0,16956.0,1.94877334]
[1673209139981,0.31092576,16957.0,16956.0,1.94877334]
[1673209141305,0.31092576,16957.0,16956.0,1.5388176]
[1673209141569,0.134,16957.0,16956.0,3.97782998]
[1673209141849,0.134,16957.0,16956.0,5.04352007]
[1673209142105,0.134,16957.0,16956.0,5.74352007]
[1673209143654,0.44232006,16960.0,16957.0,1.08625763]
[1673209143902,0.17692576,16959.0,16958.0,1.64003346]
[1673209144153,0.17692576,16959.0,16958.0,1.98723346]
[1673209144410,0.44232006,16959.0,16958.0,1.98723346]
[1673209144668,0.44232006,16959.0,16958.0,2.04652844]
[1673209144917,0.79622023,16959.0,16958.0,2.74652844]
[1673209145167,0.8260708,16959.0,16958.0,2.16783644]
[1673209145440,0.47217063,16959.0,16958.0,2.16783644]
[1673209145979,0.47217063,16959.0,16958.0,2.7610547]
[1673209146741,0.47217063,16959.0,16958.0,2.0610547]
[1673209146994,0.44217063,16959.0,16958.0,2.0500547]
[1673209147503,0.44217063,16959.0,16958.0,1.6816957]
[1673209147756,0.44617063,16959.0,16958.0,1.8206957]
[1673209148004,0.62329447,16959.0,16958.0,1.8206957]
[1673209148764,0.62329447,16959.0,16958.0,2.1890547]
[1673209149278,0.8000085,16959.0,16958.0,2.1890547]
[1673209149533,0.8000085,16959.0,16958.0,2.0154547]
[1673209149791,0.62329447,16959.0,16958.0,1.6470957]
[1673209151663,0.80000217,16959.0,16958.0,1.6470957]
[1673209151922,0.446102,16959.0,16958.0,2.0154547]
[1673209153437,0.1807077,16959.0,16958.0,2.0154547]
[1673209156657,0.1807077,16959.0,16958.0,2.6051467]
[1673209158485,0.446102,16959.0,16958.0,2.2367877]
[1673209159326,0.446102,16959.0,16958.0,2.9367877]
[1673209160028,0.446102,16959.0,16958.0,3.3051467]
[1673209160567,0.446102,16959.0,16958.0,2.9367877]
[1673209162671,0.446102,16959.0,16958.0,3.3051467]
[1673209163442,0.446102,16959.0,16958.0,2.9367877]
[1673209163712,0.80000217,16959.0,16958.0,2.9367877]
[1673209163971,0.80000217,16959.0,16958.0,2.7639877]
[1673209164206,0.62329447,16959.0,16958.0,2.7639877]
[1673209165927,0.62329447,16959.0,16958.0,2.0639877]
[1673209166161,0.004,16959.0,16958.0,2.98598077]
[1673209166451,0.004,16959.0,16958.0,3.41431376]
[1673209166954,0.004,16959.0,16958.0,4.11431376]
[1673209168492,0.004,16959.0,16958.0,3.47642044]
[1673209168986,0.004,16959.0,16958.0,4.36611244]
[1673209169247,0.00393355,16959.0,16958.0,4.36611244]
[1673209170351,0.00393355,16959.0,16958.0,4.54204153]
[1673209172176,0.00393355,16959.0,16958.0,4.36611244]
[1673209175845,0.00393355,16959.0,16958.0,4.66091244]
[1673209177895,0.44211839,16962.0,16959.0,0.6]
[1673209178151,0.44211839,16962.0,16961.0,0.774]
[1673209178419,0.44211839,16962.0,16961.0,1.65154146]
[1673209178682,0.44211839,16962.0,16961.0,1.142359]
[1673209178933,0.98321042,16962.0,16961.0,0.774]
[1673209179197,0.99421042,16962.0,16961.0,1.474]
[1673209179442,0.98321042,16962.0,16961.0,1.474]
[1673209179676,1.02321042,16962.0,16961.0,1.479]
[1673209180427,1.02321042,16962.0,16961.0,0.779]
[1673209180653,1.2003865,16962.0,16961.0,0.779]
[1673209180944,0.83593461,16962.0,16961.0,0.779]
[1673209181449,0.48203444,16962.0,16961.0,0.779]
[1673209181703,0.48203444,16962.0,16961.0,1.33237986]
[1673209181999,0.48203444,16962.0,16961.0,1.84156232]
[1673209182259,0.48203444,16962.0,16961.0,2.20992132]
[1673209182786,0.21664014,16962.0,16961.0,2.20992132]
[1673209184422,0.21664014,16962.0,16961.0,1.84156232]
[1673209184994,0.21664014,16962.0,16961.0,2.54156232]
[1673209186704,0.48203444,16962.0,16961.0,2.03237986]
[1673209186966,0.48203444,16962.0,16961.0,2.54156232]
[1673209188322,0.48203444,16962.0,16961.0,2.36756232]
[1673209188550,0.48203444,16962.0,16961.0,2.53986232]
[1673209189530,0.48203444,16962.0,16961.0,0.73067986]
[1673209189789,0.65929447,16962.0,16961.0,0.55837986]
[1673209191304,0.65929447,16962.0,16961.0,0.005]
[1673209192586,1.10088557,16962.0,16961.0,0.005]
[1673209192840,0.83549127,16962.0,16961.0,0.005]
[1673209193351,1.10044582,16962.0,16961.0,0.005]
[1673209193870,1.36541998,16962.0,16961.0,0.005]
[1673209196446,1.36541998,16962.0,16961.0,0.47004115]
[1673209197724,1.80711605,16962.0,16961.0,0.47004115]
[1673209198223,2.24881152,16962.0,16961.0,0.47004115]
[1673209198731,2.51382881,16962.0,16961.0,0.47004115]
[1673209200999,2.69053436,16962.0,16961.0,0.47004115]
[1673209201322,2.86727328,16962.0,16961.0,0.97922361]
[1673209201839,3.04401562,16962.0,16961.0,0.97922361]
[1673209202109,2.86727328,16962.0,16961.0,0.47004115]
[1673209203408,3.3092678,16962.0,16961.0,0.47004115]
[1673209203683,3.6776268,16962.0,16961.0,0.47004115]
[1673209203946,3.13247673,16962.0,16961.0,0.47004115]
[1673209204194,3.57448279,16962.0,16961.0,0.47004115]
[1673209204464,3.94284179,16962.0,16961.0,0.47004115]
[1673209205189,4.38512032,16962.0,16961.0,0.47004115]
[1673209206298,3.50172878,16962.0,16961.0,0.47004115]
[1673209207194,3.05972272,16962.0,16961.0,0.47004115]
[1673209207453,2.69136372,16962.0,16961.0,0.47004115]
[1673209208196,1.89552118,16962.0,16961.0,0.47004115]
[1673209208440,1.93093787,16962.0,16961.0,0.47004115]
[1673209208915,2.29929687,16962.0,16961.0,0.47004115]
[1673209209673,1.93093787,16962.0,16961.0,0.47004115]
[1673209210492,1.89552118,16962.0,16961.0,0.47004115]
[1673209211550,1.63050389,16962.0,16961.0,0.47004115]
[1673209211749,1.98439858,16962.0,16961.0,0.97217712]
[1673209212051,1.98439858,16962.0,16961.0,1.56176412]
[1673209212309,1.98439858,16962.0,16961.0,2.63012312]
[1673209212824,1.98439858,16962.0,16961.0,2.26176412]
[1673209213079,2.42676038,16962.0,16961.0,2.26176412]
[1673209213604,1.54212005,16962.0,16961.0,2.26176412]
[1673209213950,1.54212005,16962.0,16961.0,2.63012312]
[1673209216416,1.54212005,16962.0,16961.0,2.26176412]
[1673209216934,1.18822536,16962.0,16961.0,1.67217712]
[1673209217182,1.6305155,16962.0,16961.0,1.17004115]
[1673209217989,2.29167684,16962.0,16961.0,0.705]
[1673209218253,3.22619209,16962.0,16961.0,0.705]
[1673209218762,4.40529809,16962.0,16961.0,0.005]
[1673209219059,4.746275,16962.0,16961.0,0.005]
[1673209219333,4.23709254,16962.0,16961.0,0.005]
[1673209219856,3.86873354,16962.0,16961.0,0.005]
[1673209220105,4.23709254,16962.0,16961.0,0.005]
[1673209220705,3.86873354,16962.0,16961.0,0.005]
[1673209220955,4.23709254,16962.0,16961.0,0.005]
[1673209221216,3.7948024,16962.0,16961.0,0.005]
[1673209221502,3.39102671,16962.0,16961.0,0.005]
[1673209221989,3.75938571,16962.0,16961.0,0.005]
[1673209222915,4.26856817,16962.0,16961.0,0.005]
[1673209223132,5.42349961,16962.0,16961.0,0.0049145]
[1673209223567,5.38349961,16962.0,16959.0,0.68979685]
[1673209223841,4.80144006,16962.0,16961.0,0.007]
[1673209224102,4.93212117,16962.0,16961.0,0.007]
[1673209224356,5.01531947,16962.0,16961.0,0.014]
[1673209224612,5.13398666,16962.0,16961.0,0.007]
[1673209224868,4.6032471,16962.0,16961.0,0.007]
[1673209225124,5.13371729,16962.0,16961.0,0.007]
[1673209225664,4.62453483,16962.0,16959.0,0.95523513]
[1673209225902,0.79551304,16960.0,16959.0,0.45333818]
[1673209226149,1.16387204,16960.0,16959.0,0.45333818]
[1673209226419,0.79551304,16960.0,16959.0,0.45333818]
[1673209226995,0.35356135,16960.0,16959.0,0.45333818]
[1673209227268,0.35756135,16960.0,16959.0,0.48733818]
[1673209227521,0.94718335,16960.0,16959.0,0.48733818]
[1673209230211,1.21226857,16960.0,16959.0,0.48733818]
[1673209230466,0.79936387,16960.0,16959.0,0.9892276]
[1673209230716,0.1807173,16960.0,16959.0,0.9892276]
[1673209230972,0.004,16960.0,16959.0,0.9892276]
[1673209231513,0.004,16960.0,16959.0,1.6892276]
[1673209231778,0.004,16960.0,16959.0,2.0575866]
[1673209232551,0.004,16960.0,16959.0,1.6892276]
[1673209233312,0.004,16960.0,16959.0,2.0575866]
[1673209234097,0.004,16960.0,16959.0,1.6892276]
[1673209234564,0.004,16960.0,16959.0,2.0575866]
[1673209236929,0.004,16960.0,16959.0,1.6892276]
[1673209237803,0.1807173,16960.0,16959.0,1.18733818]
[1673209238049,0.44580252,16960.0,16959.0,1.18733818]
[1673209238568,0.1807173,16960.0,16959.0,1.68939538]
[1673209239092,0.1807173,16960.0,16959.0,1.9993142]
[1673209239352,0.004,16960.0,16959.0,4.06744978]
[1673209239871,0.004,16960.0,16959.0,3.4313302]
[1673209240167,0.004,16960.0,16959.0,3.60725929]
[1673209240431,1.05471811,16962.0,16960.0,0.6]
[1673209240710,1.05471811,16962.0,16961.0,1.34631146]
[1673209240956,1.05471811,16962.0,16961.0,1.93589846]
[1673209241220,1.05471811,16962.0,16961.0,2.63589846]
[1673209241517,1.05471811,16962.0,16961.0,3.22548546]
[1673209241772,1.05471811,16962.0,16961.0,3.39888546]
[1673209242030,1.13871811,16962.0,16961.0,4.29747246]
[1673209242662,1.05471811,16962.0,16961.0,4.84360501]
[1673209242866,1.06171811,16962.0,16961.0,4.93260501]
[1673209243117,1.05471811,16962.0,16961.0,4.54360501]
[1673209243368,1.05471811,16962.0,16961.0,4.64660501]
[1673209243369,1.06171811,16962.0,16961.0,4.64660501]
[1673209243885,1.06171811,16962.0,16961.0,4.94660501]
[1673209244416,1.06171811,16962.0,16961.0,4.84360501]
[1673209244674,1.06171811,16962.0,16961.0,4.64660501]
[1673209244934,1.06871811,16962.0,16961.0,4.74960501]
[1673209245692,1.05471811,16962.0,16961.0,4.54360501]
[1673209246216,1.05471811,16962.0,16961.0,4.84360501]
[1673209247806,1.05471811,16962.0,16961.0,4.28847246]
[1673209248372,1.05471811,16962.0,16961.0,4.8476732]
[1673209249413,1.05471811,16962.0,16961.0,4.28847246]
[1673209250177,1.05471811,16962.0,16961.0,4.39211647]
[1673209250436,1.05471811,16962.0,16961.0,4.28911647]
[1673209250713,1.05471811,16962.0,16961.0,4.39211647]
[1673209250971,1.05471811,16962.0,16961.0,5.07498926]
[1673209250972,1.06164473,16962.0,16961.0,5.07498926]
[1673209252482,1.06164473,16962.0,16961.0,4.39211647]
[1673209252742,1.06164473,16962.0,16961.0,5.16006414]
[1673209253005,1.06164473,16962.0,16961.0,6.4709936]
[1673209253568,0.01316764,16964.0,16962.0,0.6]
[1673209253831,0.01316764,16964.0,16963.0,1.17754146]
[1673209254096,0.01316764,16964.0,16963.0,3.46699546]
[1673209254880,0.02016764,16964.0,16963.0,4.16699546]
[1673209255146,0.01316764,16964.0,16963.0,4.16699546]
[1673209255405,0.01916764,16964.0,16963.0,4.27763938]
[1673209257965,0.01916764,16964.0,16963.0,4.57233938]
[1673209258992,0.01916764,16964.0,16963.0,5.17299913]
[1673209260507,0.01916764,16964.0,16963.0,5.09510351]
[1673209261084,0.01916764,16964.0,16963.0,4.57233938]
[1673209261534,0.01552564,16964.0,16963.0,4.57233938]
[1673209262034,0.01552564,16964.0,16963.0,4.57234938]
[1673209262556,0.01552564,16964.0,16963.0,5.18933565]
[1673209262827,0.01552564,16964.0,16963.0,4.71533565]
[1673209263626,0.01552564,16964.0,16963.0,5.01533565]
[1673209266421,0.01552564,16964.0,16963.0,4.71533565]
[1673209266676,0.01552564,16964.0,16963.0,5.01533565]
[1673209268230,0.01552564,16964.0,16963.0,4.71533565]
[1673209268712,0.01552564,16964.0,16963.0,5.01533565]
[1673209269715,0.01552564,16964.0,16963.0,4.84133565]
[1673209273522,0.01052564,16964.0,16963.0,4.84133565]
[1673209274015,1e-08,16964.0,16963.0,4.84133565]
[1673209276357,0.0146686,16965.0,16964.0,0.6]
[1673209276562,0.0146686,16965.0,16964.0,4.24599046]
[1673209277087,0.0146686,16965.0,16964.0,3.54599046]
[1673209277590,0.0146686,16965.0,16964.0,4.19494205]
[1673209277836,0.0206686,16965.0,16964.0,4.71094205]
[1673209280779,0.0206686,16965.0,16964.0,5.01094205]
[1673209281276,0.0206686,16965.0,16964.0,5.30565205]
[1673209283059,0.0206686,16965.0,16964.0,4.60565205]
[1673209283570,0.0206686,16965.0,16964.0,4.30565205]
[1673209284169,0.0206686,16965.0,16964.0,5.00565205]
[1673209287271,0.0206686,16965.0,16964.0,4.65670046]
[1673209287525,0.0206686,16965.0,16964.0,4.8324648]
[1673209288035,0.0206686,16965.0,16964.0,5.35666229]
[1673209288290,0.0206686,16965.0,16964.0,4.8324648]
[1673209288548,0.0206686,16965.0,16964.0,5.37745897]
[1673209289544,0.0206686,16965.0,16964.0,5.37815897]
[1673209289807,0.0206686,16965.0,16964.0,5.43050927]
[1673209290065,0.0206686,16965.0,16964.0,5.69440291]
[1673209290594,0.0206686,16965.0,16964.0,5.43043428]
[1673209290847,0.0206686,16965.0,16964.0,5.43094722]
[1673209291092,0.0206686,16965.0,16964.0,5.69536314]
[1673209291629,0.0206686,16965.0,16964.0,5.25466994]
[1673209293916,0.0206686,16965.0,16964.0,5.42826994]
[1673209294667,0.0206686,16965.0,16964.0,4.21908748]
[1673209294924,0.0206686,16965.0,16964.0,3.91908748]
[1673209295717,0.0206686,16965.0,16964.0,4.61908748]
[1673209295966,0.0206686,16965.0,16964.0,4.58327577]
[1673209296221,0.0206686,16965.0,16964.0,5.25803582]
[1673209297768,0.0206686,16965.0,16964.0,4.74885336]
[1673209298059,0.0206686,16965.0,16964.0,5.25803582]
[1673209298781,0.0206686,16965.0,16964.0,4.58327577]
[1673209299072,0.0206686,16965.0,16964.0,5.05727577]
[1673209301529,0.0206686,16965.0,16964.0,5.65122344]
[1673209301787,0.0206686,16965.0,16964.0,5.82522344]
[1673209302532,0.0146686,16965.0,16964.0,5.70922344]
[1673209302783,0.0146686,16965.0,16964.0,5.84822344]
[1673209303265,0.0146686,16965.0,16964.0,5.70922344]
[1673209303526,0.0146686,16965.0,16964.0,5.84822344]
[1673209304277,0.0146686,16965.0,16964.0,5.33904098]
[1673209304524,0.0146686,16965.0,16964.0,5.50857092]
[1673209311251,0.0146686,16965.0,16964.0,6.0687247]
[1673209311486,0.0146686,16965.0,16964.0,5.50857092]
[1673209317374,0.0146686,16965.0,16964.0,4.80857092]
[1673209318400,0.0146686,16965.0,16964.0,5.50857092]
[1673209319184,0.0096686,16965.0,16964.0,5.50857092]
[1673209322187,0.0096686,16965.0,16964.0,5.20857092]
[1673209323449,0.0096686,16965.0,16964.0,5.50857092]
[1673209323925,0.0046686,16965.0,16964.0,5.33497092]
[1673209326639,0.00309889,16965.0,16964.0,5.33497092]
[1673209329609,0.00309889,16965.0,16964.0,5.90860051]
[1673209329863,0.00309889,16965.0,16964.0,3.6217764]
[1673209331826,0.00309889,16965.0,16964.0,4.2165064]
[1673209332080,0.00309889,16965.0,16964.0,4.5848654]
[1673209332801,0.00309889,16965.0,16964.0,4.2848654]
[1673209333715,0.00309889,16965.0,16964.0,3.9901354]
[1673209335814,0.00309889,16965.0,16964.0,3.6217764]
[1673209337915,0.00309889,16965.0,16964.0,3.04814681]
[1673209338615,0.00309889,16965.0,16964.0,3.62454114]
[1673209339746,0.00309889,16965.0,16964.0,3.80130361]
[1673209339910,0.00309889,16965.0,16964.0,3.03505814]
[1673209341206,0.00309889,16965.0,16964.0,3.13505814]
[1673209341990,0.00309889,16965.0,16964.0,2.75785264]
[1673209342240,0.70270113,16965.0,16964.0,1.56844463]
[1673209342509,1.33620384,16965.0,16964.0,1.56844463]
[1673209342803,1.33620384,16965.0,16964.0,1.0920503]
[1673209342804,1.68526631,16965.0,16964.0,1.0920503]
[1673209343565,1.68526631,16965.0,16964.0,0.9530503]
[1673209343822,1.68626631,16965.0,16964.0,1.0920503]
[1673209344088,1.50944322,16965.0,16964.0,1.0920503]
[1673209344601,1.40944322,16965.0,16964.0,0.3920503]
[1673209344855,1.40844322,16965.0,16964.0,0.2530503]
[1673209345101,1.41544322,16965.0,16964.0,0.2530503]
[1673209345613,1.40544322,16965.0,16964.0,0.2530503]
[1673209346880,2.58433922,16965.0,16964.0,0.2530503]
[1673209347150,3.11962478,16965.0,16964.0,0.2530503]
[1673209347401,2.83180314,16965.0,16964.0,0.2530503]
[1673209347660,3.42125114,16965.0,16964.0,0.2530503]
[1673209348205,3.86265106,16965.0,16964.0,0.2530503]
[1673209348468,3.42125114,16965.0,16964.0,0.2530503]
[1673209349463,3.86267266,16965.0,16964.0,0.2530503]
[1673209349730,3.86267318,16965.0,16964.0,0.2530503]
[1673209352796,3.70789794,16965.0,16964.0,0.2530503]
[1673209353602,3.53108556,16965.0,16964.0,0.2530503]
[1673209354356,3.70745977,16965.0,16964.0,0.2530503]
[1673209354598,3.35878556,16965.0,16964.0,0.2530503]
[1673209354854,3.18231832,16965.0,16964.0,0.2530503]
[1673209355108,2.59287032,16965.0,16964.0,0.2530503]
[1673209355868,2.41967032,16965.0,16964.0,0.2530503]
[1673209356165,2.00373166,16965.0,16964.0,0.2530503]
[1673209356416,0.007,16965.0,16964.0,0.93706885]
[1673209356947,0.007,16965.0,16964.0,1.44467833]
[1673209357433,0.007,16965.0,16964.0,0.93706885]
[1673209357692,0.007,16965.0,16964.0,2.04467833]
[1673209357962,0.007,16965.0,16964.0,3.70252033]
[1673209358222,0.007,16965.0,16964.0,3.70316421]
[1673209359355,0.007,16965.0,16964.0,4.29264721]
[1673209359769,0.007,16965.0,16964.0,3.90862866]
[1673209360021,0.02008389,16966.0,16965.0,1.24790808]
[1673209360289,0.02008389,16966.0,16965.0,5.07677256]
[1673209361045,0.02008389,16966.0,16965.0,4.42886448]
[1673209361309,0.02008389,16966.0,16965.0,5.01831248]
[1673209361568,0.0191922,16966.0,16965.0,5.01831248]
[1673209361793,0.0281922,16966.0,16965.0,5.02131248]
[1673209363324,0.0281922,16966.0,16965.0,5.19531248]
[1673209363839,0.0191922,16966.0,16965.0,5.19231248]
[1673209364099,0.0201922,16966.0,16965.0,5.33231248]
[1673209364350,0.0191922,16966.0,16965.0,5.19231248]
[1673209364612,0.0201922,16966.0,16965.0,5.33131248]